Workbook

Sheet Лист1
I1: К постановлению Администрации Североуральского городского округа от .10.2015г. №
A2: Приложение № 2 к муниципальной программе Североуральского городского округа «Развитие жилищно-коммунального хозяйства и транспортного обслуживания населения, повышение энергетической эффективности и охрана окружающей среды в Североуральском городском округе» на 2014-2020 годы
A3: План мероприятий
A4: по выполнению муниципальной программы Североуральского городского округа
A5: «Развитие жилищно-коммунального хозяйства и транспортного обслуживания населения,
A6: повышение энергетической эффективности и охрана окружающей среды в Североуральском городском округе» на 2014-2020 годы
A8: № строки | B8: Наименование мероприятия/ Источники расходов на финансирование | C8: Объем расходов на выполнение мероприятия за счет всех источников ресурсного обеспечения, тыс. руб. | K8: Номер строки целевых показателей, на достижение которых направлены мероприятия
C9: Всего | D9: первый год | E9: второй год | F9: третий год | G9: четвертый год | H9: пятый год | I9: шестой год | J9: седьмой год
B10: ВСЕГО по муниципальной программе, в том числе: | C10: =SUM(C11:C13) -> 1,169,208.0 | D10: 283,826.9 | E10: =SUM(E11:E13) -> 361,776.7 | F10: 126,748.5 | G10: 97,699.2 | H10: 99,718.9 | I10: 99,718.9 | J10: 99,718.9 | K10: Х
B11: местный бюджет | C11: =SUM(D11:J11) -> 755,010.6 | D11: =SUM(D15+D19) -> 92,792.8 | E11: =SUM(E15+E19) -> 138,613.4 | F11: 126,748.5 | G11: 97,699.2 | H11: 99,718.9 | I11: 99,718.9 | J11: 99,718.9
B12: областной бюджет | C12: =SUM(D12:J12) -> 245,879.8 | D12: =SUM(D16+D20) -> 109,216.1 | E12: =SUM(E16+E20) -> 136,663.7 | F12: =SUM(F16+F20) -> 0.0 | G12: =SUM(G16+G20) -> 0.0 | H12: =SUM(H16+H20) -> 0.0 | I12: =SUM(I16+I20) -> 0.0 | J12: =SUM(J16+J20) -> 0.0
B13: федеральный бюджет | C13: =SUM(D13:J13) -> 168,317.6 | D13: =SUM(D21+D17) -> 81,818.0 | E13: =SUM(E21+E17) -> 86,499.6 | F13: 0.0 | G13: 0.0 | H13: 0.0 | I13: 0.0 | J13: 0.0
B14: Капитальные вложения | C14: =SUM(C15:C17) -> 602,563.9 | D14: =SUM(D15:D17) -> 232,761.9 | E14: =SUM(E15:E17) -> 272,978.7 | F14: 39,288.3 | G14: 13,900.0 | H14: 14,545.0 | I14: 14,545.0 | J14: 14,545.0 | K14: Х
B15: местный бюджет | C15: =SUM(D15:J15) -> 191,733.7 | D15: =D29+D103+D159+D179+D209+D242+D308+D327 -> 44,727.8 | E15: 50,182.6 | F15: 39,288.3 | G15: 13,900.0 | H15: 14,545.0 | I15: 14,545.0 | J15: 14,545.0
B16: областной бюджет | C16: =SUM(D16:J16) -> 242,512.6 | D16: =D104+D180+D30 -> 106,216.1 | E16: =E104+E180+E30 -> 136,296.5 | F16: =F104+F180 -> 0.0 | G16: =G104+G180 -> 0.0 | H16: =H104+H180 -> 0.0 | I16: =I104+I180 -> 0.0 | J16: =J104+J180 -> 0.0
B17: федеральный бюджет | C17: =SUM(D17:J17) -> 168,317.6 | D17: =D181 -> 81,818.0 | E17: =E181 -> 86,499.6 | F17: 0.0 | G17: 0.0 | H17: 0.0 | I17: 0.0 | J17: 0.0
B18: Прочие нужды | C18: =SUM(C19:C20) -> 566,644.1 | D18: =SUM(D19:D20) -> 51,065.0 | E18: =SUM(E19:E20) -> 88,798.0 | F18: 87,460.2 | G18: 83,799.2 | H18: 85,173.9 | I18: 85,173.9 | J18: 85,173.9 | K18: Х
B19: местный бюджет | C19: =SUM(D19:J19) -> 563,276.9 | D19: =D44+D131+D168+D197+D251+D317+D346+D218+D299 -> 48,065.0 | E19: 88,430.8 | F19: =F44+F131+F168+F197+F251+F317+F346+F218+F299 -> 87,460.2 | G19: =G44+G131+G168+G197+G251+G317+G346+G218+G299 -> 83,799.2 | H19: =H44+H131+H168+H197+H251+H317+H346+H218+H299 -> 85,173.9 | I19: =I44+I131+I168+I197+I251+I317+I346+I218+I299 -> 85,173.9 | J19: =J44+J131+J168+J197+J251+J317+J346+J218+J299 -> 85,173.9
B20: областной бюджет | C20: =SUM(D20:J20) -> 3,367.2 | D20: =SUM(D132+D345+D45) -> 3,000.0 | E20: 367.2 | F20: 0.0 | G20: 0.0 | H20: 0.0 | I20: 0.0 | J20: 0.0
B21: федеральный бюджет | C21: =SUM(D21:J21) -> 0.0 | D21: 0.0 | E21: =E132 -> 0.0 | F21: 0.0 | G21: 0.0 | H21: 0.0 | I21: 0.0 | J21: 0.0
A22: Подпрограмма 1: Комплексное благоустройство территории Североуральского городского округа
B23: Всего по подпрограмме 1, | C23: =SUM(C25+C26) -> 239,221.5 | D23: =SUM(D25:D26) -> 25,725.2 | E23: 30,875.8 | F23: 34,050.0 | G23: 36,270.0 | H23: 37,433.5 | I23: 37,433.5 | J23: 37,433.5 | K23: Х
B24: в том числе:
B25: местный бюджет | C25: =SUM(D25:J25) -> 232,808.5 | D25: =SUM(D29+D44) -> 24,510.5 | E25: 25,677.5 | F25: 34,050.0 | G25: 36,270.0 | H25: 37,433.5 | I25: 37,433.5 | J25: 37,433.5
B26: областной бюджет | C26: =SUM(D26:J26) -> 6,413.0 | D26: =SUM(D30+D45) -> 1,214.7 | E26: 5,198.3 | F26: 0.0 | G26: 0.0 | H26: 0.0 | I26: 0.0 | J26: 0.0
A27: 1. Капитальные вложения
B28: Всего по направлению «Капитальные вложения» всего, в том числе | C28: =SUM(D28:J28) -> 24,313.7 | D28: =SUM(D29+D30) -> 3,536.4 | E28: =SUM(E29+E30) -> 5,432.3 | F28: =SUM(F29) -> 1,500.0 | G28: =SUM(G29) -> 3,300.0 | H28: =SUM(H29) -> 3,515.0 | I28: =SUM(I29) -> 3,515.0 | J28: =SUM(J29) -> 3,515.0 | K28: Х
B29: местный бюджет | C29: =SUM(D29:J29) -> 18,246.9 | D29: =SUM(D40) -> 2,321.7 | E29: =SUM(E40) -> 580.2 | F29: 1,500.0 | G29: 3,300.0 | H29: 3,515.0 | I29: 3,515.0 | J29: 3,515.0
B30: областной бюджет | C30: =SUM(D30:J30) -> 6,066.8 | D30: =SUM(D37) -> 1,214.7 | E30: =SUM(E37) -> 4,852.1 | F30: 0.0 | G30: 0.0 | H30: 0.0 | I30: 0.0 | J30: 0.0
A31: 1.1. Бюджетные инвестиции в объекты капитального строительства
B32: Бюджетные инвестиции в объекты капитального строительства всего, в том числе | C32: 0 | D32: 0 | E32: 0 | F32: 0 | G32: 0 | H32: 0 | I32: 0 | J32: 0 | K32: Х
B33: местный бюджет | C33: 0 | D33: 0 | E33: 0 | F33: 0 | G33: 0 | H33: 0 | I33: 0 | J33: 0
A34: 1.2. Иные капитальные вложения
B35: Всего | C35: =SUM(D35:J35) -> 24,313.7 | D35: =SUM(D36:D37) -> 3,536.4 | E35: =SUM(E36:E37) -> 5,432.3 | F35: 1,500.0 | G35: 3,300.0 | H35: 3,515.0 | I35: 3,515.0 | J35: 3,515.0 | K35: Х
B36: местный бюджет | C36: =SUM(D36:J36) -> 18,246.9 | D36: =SUM(D40) -> 2,321.7 | E36: =SUM(E40) -> 580.2 | F36: 1,500.0 | G36: 3,300.0 | H36: 3,515.0 | I36: 3,515.0 | J36: 3,515.0
B37: областной бюджет | C37: =SUM(D37:J37) -> 6,066.8 | D37: =SUM(D41) -> 1,214.7 | E37: =SUM(E41) -> 4,852.1 | F37: 0.0 | G37: 0.0 | H37: 0.0 | I37: 0.0 | J37: 0.0
A38: Мероприятие 1 Благоустройство дворовых территорий Североуральского городского округа
B39: Всего, из них | C39: =SUM(D39:J39) -> 24,313.7 | D39: =D40+D41 -> 3,536.4 | E39: =SUM(E40:E41) -> 5,432.3 | F39: =SUM(F40) -> 1,500.0 | G39: =SUM(G40) -> 3,300.0 | H39: =SUM(H40) -> 3,515.0 | I39: =SUM(I40) -> 3,515.0 | J39: =SUM(J40) -> 3,515.0 | K39: 4
B40: местный бюджет | C40: =SUM(D40:J40) -> 18,246.9 | D40: 2,321.7 | E40: 580.2 | F40: 1,500.0 | G40: 3,300.0 | H40: 3,515.0 | I40: =SUM(H40) -> 3,515.0 | J40: =SUM(I40) -> 3,515.0
B41: областной бюджет | C41: =D41+E41+F41+G41+H41+I41+J41 -> 6,066.8 | D41: 1,214.7 | E41: 4,852.1 | F41: 0.0 | G41: 0.0 | H41: 0.0 | I41: 0.0 | J41: 0.0
A42: 3. Прочие нужды
B43: Всего по направлению «Прочие нужды», всего, в том числе: | C43: =SUM(D43:J43) -> 214,907.8 | D43: =SUM(D44:D45) -> 22,188.8 | E43: =SUM(E44:E45) -> 25,443.5 | F43: 32,550.0 | G43: 32,970.0 | H43: 33,918.5 | I43: 33,918.5 | J43: 33,918.5 | K43: Х | N43: =SUM(E40+E48) -> 837.2
B44: местный бюджет | C44: =SUM(D44:J44) -> 214,561.6 | D44: =SUM(D52+D55+D58+D61+D48) -> 22,188.8 | E44: =SUM(E52+E55+E58+E61+E48) -> 25,097.3 | F44: 32,550.0 | G44: 32,970.0 | H44: 33,918.5 | I44: 33,918.5 | J44: 33,918.5
B45: областной бюджет | C45: =SUM(D45:J45) -> 346.2 | D45: =SUM(D72) -> 0.0 | E45: =SUM(E72) -> 346.2 | F45: 0.0 | G45: 0.0 | H45: 0.0 | I45: 0.0 | J45: 0.0
A46: Мероприятие 1 Благоустройство дворовых территорий Североуральского городского округа
B47: Всего, из них | C47: =SUM(D47:J47) -> 567.9 | D47: =D48+D49 -> 310.9 | E47: =SUM(E48) -> 257.0 | F47: 0.0 | G47: 0.0 | H47: 0.0 | I47: 0.0 | J47: 0.0 | K47: 4
B48: местный бюджет | C48: =SUM(D48:J48) -> 567.9 | D48: 310.9 | E48: 257.0 | F48: 0.0 | G48: 0.0 | H48: =SUM(G48) -> 0.0 | I48: =SUM(H48) -> 0.0 | J48: =SUM(I48) -> 0.0
B49: областной бюджет | C49: =D49+E49+F49+G49+H49+I49+J49 -> 0.0 | D49: 0.0 | E49: 0.0 | F49: 0.0 | G49: 0.0 | H49: 0.0 | I49: 0.0 | J49: 0.0
A50: Мероприятие 2 - Уличное освещение
B51: Всего, из них | C51: =SUM(D51:J51) -> 103,335.0 | D51: =SUM(D52) -> 12,001.0 | E51: 12,600.0 | F51: 14,000.0 | G51: 15,960.0 | H51: 16,258.0 | I51: 16,258.0 | J51: 16,258.0 | K51: 8
B52: местный бюджет | C52: =SUM(D52:J52) -> 103,335.0 | D52: 12,001.0 | E52: 12,600.0 | F52: 14,000.0 | G52: 15,960.0 | H52: 16,258.0 | I52: =SUM(H52) -> 16,258.0 | J52: =SUM(I52) -> 16,258.0
A53: Мероприятие 3 - Озеленение (цветники, валка сухих деревьев)
B54: Всего, из них | C54: =SUM(D54:J54) -> 27,375.4 | D54: =SUM(D55) -> 2,890.9 | E54: 2,183.0 | F54: 4,000.0 | G54: 4,410.0 | H54: 4,630.5 | I54: 4,630.5 | J54: 4,630.5 | K54: 10
B55: местный бюджет | C55: =SUM(D55:J55) -> 27,375.4 | D55: 2,890.9 | E55: 2,183.0 | F55: 4,000.0 | G55: 4,410.0 | H55: 4,630.5 | I55: =SUM(H55) -> 4,630.5 | J55: =SUM(I55) -> 4,630.5
A56: Мероприятие 4 - Организация и содержание мест захоронения
B57: Всего, из них | C57: =SUM(D57:J57) -> 23,589.2 | D57: =SUM(D58) -> 2,263.1 | E57: 2,306.9 | F57: 3,550.0 | G57: 3,727.5 | H57: 3,913.9 | I57: 3,913.9 | J57: 3,913.9 | K57: 15
B58: местный бюджет | C58: =SUM(D58:J58) -> 23,589.2 | D58: 2,263.1 | E58: 2,306.9 | F58: 3,550.0 | G58: 3,727.5 | H58: 3,913.9 | I58: =SUM(H58) -> 3,913.9 | J58: =SUM(I58) -> 3,913.9
A59: Мероприятие 5 - Прочие мероприятия по благоустройству
B60: Всего, в том числе: | C60: =SUM(D60:J60) -> 60,040.3 | D60: =SUM(D61:D62) -> 4,722.9 | E60: =SUM(E61:E62) -> 8,096.6 | F60: 11,000.0 | G60: 8,872.5 | H60: 9,116.1 | I60: 9,116.1 | J60: 9,116.1 | K60: 5,6,10,12,13,14,16
B61: местный бюджет | C61: =SUM(D61:J61) -> 59,694.1 | D61: =SUM(D65+D68+D71+D75+D78+D87+D81+D90+D96+D84+D93) -> 4,722.9 | E61: =SUM(E65+E68+E71+E75+E78+E87+E81+E90+E96+E84+E93) -> 7,750.4 | F61: 11,000.0 | G61: 8,872.5 | H61: 9,116.1 | I61: 9,116.1 | J61: 9,116.1
B62: областной бюджет | C62: =SUM(D62:J62) -> 346.2 | D62: =SUM(D72) -> 0.0 | E62: =SUM(E72) -> 346.2 | F62: 0.0 | G62: 0.0 | H62: 0.0 | I62: 0.0 | J62: 0.0
A63: - Содержание памятников
B64: Всего: | C64: =SUM(C65) -> 3524.1 | D64: 369.2 | E64: 404.9 | F64: 450.0 | G64: 500.0 | H64: 600 | I64: 600 | J64: 600 | K64: 16
B65: местный бюджет | C65: =SUM(D65:J65) -> 3524.1 | D65: 369.2 | E65: 404.9 | F65: 450.0 | G65: 500.0 | H65: 600.0 | I65: =SUM(H65) -> 600.0 | J65: =SUM(I65) -> 600.0
A66: - Проведение комплекса профилактических работ по уходу за объектами благоустройства
B67: Всего: | C67: =SUM(C68) -> 9077.3 | D67: =SUM(D68) -> 1098.7 | E67: =SUM(E68) -> 976.1 | F67: 1200 | G67: 1302.5 | H67: 1500 | I67: 1500 | J67: 1500 | K67: 5
B68: местный бюджет | C68: =SUM(D68:J68) -> 9077.3 | D68: 1098.7 | E68: 976.1 | F68: 1,200.0 | G68: 1,302.5 | H68: 1,500.0 | I68: =SUM(H68) -> 1,500.0 | J68: =SUM(I68) -> 1,500.0
A69: - Регулирование численности безнадзорных животных
B70: Всего: | C70: =SUM(D70:J70) -> 5937.2 | D70: =SUM(D71:D72) -> 500.0 | E70: =SUM(E71:E72) -> 1177.2 | F70: 800.0 | G70: 850.0 | H70: 870.0 | I70: 870.0 | J70: 870.0 | K70: 12
B71: местный бюджет | C71: =SUM(D71:J71) -> 5591 | D71: 500.0 | E71: 831.0 | F71: 800.0 | G71: 850.0 | H71: 870.0 | I71: =SUM(H71) -> 870.0 | J71: =SUM(I71) -> 870.0
B72: областной бюджет | C72: =SUM(D72:J72) -> 346.2 | E72: 346.2
A73: - Содержание биоямы (скотомогильник)
B74: Всего: | C74: =SUM(C75) -> 815.4 | D74: =SUM(D75) -> 116.1 | E74: =SUM(E75) -> 69.3 | F74: 80.0 | G74: 100.0 | H74: 150.0 | I74: 150.0 | J74: 150.0 | K74: 14
B75: местный бюджет | C75: =SUM(D75:J75) -> 815.4 | D75: 116.1 | E75: 69.3 | F75: 80.0 | G75: 100.0 | H75: 150.0 | I75: =SUM(H75) -> 150.0 | J75: =SUM(I75) -> 150.0
A76: - Обустройство и эксплуатация новогодних городков
B77: Всего: | C77: =SUM(C78) -> 17,543.0 | D77: =SUM(D78) -> 1,685.5 | E77: =SUM(E78) -> 2,169.2 | F77: 2,250.0 | G77: 2,600.0 | H77: 2,946.1 | I77: 2,946.1 | J77: 2,946.1 | K77: 5
B78: местный бюджет | C78: =SUM(D78:J78) -> 17,543.0 | D78: 1,685.5 | E78: 2,169.2 | F78: 2,250.0 | G78: 2,600.0 | H78: 2,946.1 | I78: =SUM(H78) -> 2,946.1 | J78: =SUM(I78) -> 2,946.1
A79: - Приобретение декоративного освещения для улиц города Североуральска
B80: Всего: | C80: =SUM(C81) -> 6,054.4 | D80: =SUM(D81) -> 773.4 | E80: =SUM(E81) -> 1,701.0 | F80: 700.0 | G80: 720.0 | H80: 720.0 | I80: 720.0 | J80: 720.0 | K80: 5
B81: местный бюджет | C81: =SUM(D81:J81) -> 6,054.4 | D81: 773.4 | E81: 1,701.0 | F81: 700.0 | G81: 720.0 | H81: =SUM(G81) -> 720.0 | I81: =SUM(H81) -> 720.0 | J81: =SUM(I81) -> 720.0
A82: - Обслуживание декоративного освещения для улиц города Североуральска
B83: Всего: | C83: =SUM(C84) -> 2,500.0 | D83: =SUM(D84) -> 0.0 | E83: =SUM(E84) -> 0.0 | F83: 300.0 | G83: 400.0 | H83: 600.0 | I83: 600.0 | J83: 600.0 | K83: 5
B84: местный бюджет | C84: =SUM(D84:J84) -> 2,500.0 | D84: 0.0 | E84: 0.0 | F84: 300.0 | G84: 400.0 | H84: 600.0 | I84: =SUM(H84) -> 600.0 | J84: =SUM(I84) -> 600.0
A85: - Акарицидная обработка общественных мест
B86: Всего: | C86: =SUM(C87) -> 1651.9 | D86: =SUM(D87) -> 92.0 | E86: =SUM(E87) -> 99.9 | F86: 170.0 | G86: 300 | H86: 330 | I86: 330 | J86: 330 | K86: 13
B87: местный бюджет | C87: =SUM(D87:J87) -> 1651.9 | D87: 92.0 | E87: 99.9 | F87: 170.0 | G87: 300.0 | H87: 330.0 | I87: =SUM(H87) -> 330.0 | J87: =SUM(I87) -> 330.0
A88: - Приобретение грунта плодородного (земли садовой)
B89: Всего: | C89: =SUM(C90) -> 688.0 | D89: =SUM(D90) -> 88.0 | E89: =SUM(E90) -> 0.0 | F89: 50 | G89: 100 | H89: 150 | I89: 150 | J89: 150 | K89: 10
B90: местный бюджет | C90: =SUM(D90:J90) -> 688.0 | D90: 88.0 | E90: 0.0 | F90: 50.0 | G90: 100.0 | H90: 150.0 | I90: =SUM(H90) -> 150.0 | J90: =SUM(I90) -> 150.0
A91: - Приобретение и установка металлических урн и скамеек
B92: Всего: | C92: =SUM(C93) -> 3000.0 | D92: =SUM(D93) -> 0.0 | E92: =SUM(E93) -> 0.0 | F92: 2000 | G92: 1000 | H92: 0 | I92: 0 | J92: 0 | K92: 6
B93: местный бюджет | C93: =SUM(D93:J93) -> 3000.0 | D93: 0.0 | E93: 0.0 | F93: 2,000.0 | G93: 1,000.0 | H93: 0.0 | I93: =SUM(H93) -> 0.0 | J93: =SUM(I93) -> 0.0
A94: - Благоустройство мест общего пользования территории Североуральского городского округа
B95: Всего: | C95: =SUM(C96) -> 9249.0 | D95: =SUM(D96) -> 0.0 | E95: =SUM(E96) -> 1499.0 | F95: 3000 | G95: 1000 | H95: 1250 | I95: 1250 | J95: 1250 | K95: 5
B96: местный бюджет | C96: =SUM(D96:J96) -> 9249.0 | D96: 0.0 | E96: 1,499.0 | F96: 3,000.0 | G96: 1,000.0 | H96: 1,250.0 | I96: =SUM(H96) -> 1,250.0 | J96: =SUM(I96) -> 1,250.0
A97: Подпрограмма 2: Муниципальная программа по энергосбережению и повышению энергетической эффективности объектов Североуральского городского округа
B98: Всего по подпрограмме 2, в том числе | C98: =SUM(D98:J98) -> 95,677.7 | D98: =SUM(D99:D100) -> 9,165.5 | E98: 11,901.3 | F98: 23,065.0 | G98: 12,818.3 | H98: 12,909.2 | I98: 12,909.2 | J98: 12,909.2 | K98: Х
B99: местный бюджет | C99: =SUM(D99:J99) -> 89,333.3 | D99: =SUM(D103+D131) -> 2,821.1 | E99: =SUM(E103+E131) -> 11,901.3 | F99: =F103+F131 -> 23,065.0 | G99: =SUM(G103+G131) -> 12,818.3 | H99: 12,909.2 | I99: 12,909.2 | J99: 12,909.2
B100: областной бюджет | C100: =SUM(D100:J100) -> 6,344.4 | D100: =SUM(D104+D132) -> 6,344.4 | E100: =SUM(E104+E132) -> 0.0 | F100: =SUM(F104+F132) -> 0.0 | G100: 0.0 | H100: 0.0 | I100: 0.0 | J100: 0.0
A101: 1. Капитальные вложения
B102: Всего по направлению «Капитальные вложения», всего, в том числе | C102: =SUM(C103:C104) -> 38,076.1 | D102: 4,173.6 | E102: 0.0 | F102: 12,000.0 | G102: 5,350.0 | H102: 5,517.5 | I102: 5,517.5 | J102: 5,517.5 | K102: Х
B103: местный бюджет | C103: =SUM(D103:J103) -> 34,731.7 | D103: =SUM(D111+D107) -> 829.2 | E103: =SUM(E111+E107) -> 0.0 | F103: 12,000.0 | G103: 5,350.0 | H103: 5,517.5 | I103: 5,517.5 | J103: 5,517.5
B104: областной бюджет | C104: =SUM(D104:J104) -> 3,344.4 | D104: =SUM(D112+D108) -> 3,344.4 | E104: =SUM(E112+E108) -> 0.0 | F104: 0.0 | G104: 0.0 | H104: 0.0 | I104: 0.0 | J104: 0.0
A105: 1.1. Бюджетные инвестиции в объекты капитального строительства
B106: Бюджетные инвестиции в объекты капитального строительства всего, в том числе | C106: =SUM(C107:C108) -> 0 | D106: 0 | E106: 0 | F106: 0 | G106: 0 | H106: 0 | I106: 0 | J106: 0 | K106: Х
B107: местный бюджет | C107: =SUM(D107:J107) -> 0 | D107: 0 | E107: 0 | F107: 0 | G107: 0 | H107: 0 | I107: 0 | J107: 0
B108: областной бюджет | C108: =SUM(D108:J108) -> 0 | D108: 0 | E108: 0 | F108: 0 | G108: 0 | H108: 0 | I108: 0 | J108: 0
A109: 1.2. Иные капитальные вложения
B110: Всего, в том числе | C110: =SUM(C111:C112) -> 38,076.1 | D110: 4,173.6 | E110: 0.0 | F110: 12,000.0 | G110: 5,350.0 | H110: 5,517.5 | I110: 5,517.5 | J110: 5,517.5 | K110: Х
B111: местный бюджет | C111: =SUM(D111:J111) -> 34,731.7 | D111: =SUM(D123+D127+D115+D119) -> 829.2 | E111: =SUM(E123+E127+E115+E119) -> 0.0 | F111: 12,000.0 | G111: 5,350.0 | H111: 5,517.5 | I111: 5,517.5 | J111: 5,517.5
B112: областной бюджет | C112: =SUM(D112:J112) -> 3,344.4 | D112: =SUM(D124+D128+D116+D120) -> 3,344.4 | E112: =SUM(E124+E128+E116+E120) -> 0.0 | F112: 0.0 | G112: 0.0 | H112: 0.0 | I112: 0.0 | J112: 0.0
A113: Мероприятие 8 - Строительство котельных в Североуральском городском округе
B114: всего, из них: | C114: =SUM(C115:C116) -> 15,472.5 | D114: =SUM(D115:D116) -> 0.0 | E114: =SUM(E115:E116) -> 0.0 | F114: 3,000.0 | G114: 3,150.0 | H114: 3,107.5 | I114: 3,107.5 | J114: 3,107.5 | K114: 33
B115: местный бюджет | C115: =SUM(D115:J115) -> 15,472.5 | D115: 0.0 | E115: 0.0 | F115: 3,000.0 | G115: 3,150.0 | H115: 3,107.5 | I115: =SUM(H115) -> 3,107.5 | J115: =SUM(I115) -> 3,107.5
B116: областной бюджет | C116: =SUM(D116:J116) -> 0.0 | D116: 0.0 | E116: 0.0 | F116: 0.0 | G116: 0.0 | H116: =SUM(G116) -> 0.0 | I116: =SUM(H116) -> 0.0 | J116: =SUM(I116) -> 0.0
A117: Мероприятие 9 - Строительство сетей водоснабжения в Североуральском городском округе
B118: всего, из них: | C118: =SUM(C119:C120) -> 7,000.0 | D118: =SUM(D119:D120) -> 0.0 | E118: =SUM(E119:E120) -> 0.0 | F118: 7,000.0 | G118: 0.0 | H118: 0.0 | I118: 0.0 | J118: 0.0 | K118: 31
B119: местный бюджет | C119: =SUM(D119:J119) -> 7,000.0 | D119: 0.0 | E119: 0.0 | F119: 7,000.0 | G119: 0.0 | H119: =SUM(G119) -> 0.0 | I119: 0.0 | J119: 0.0
B120: областной бюджет | C120: =SUM(D120:J120) -> 0.0 | D120: 0.0 | E120: 0.0 | F120: 0.0 | G120: 0.0 | H120: 0.0 | I120: 0.0 | J120: 0.0
A121: Мероприятие 1- Реконструкция, модернизация водопроводных сетей, сетей системы водоотведения с заменой (без замены) оборудования с более высоким КПД, установка регулируемого привода, реконструкция тепловых сетей, в том числе тепловых пунктов, котельных, капитальный ремонт систем коммунального хозяйства
B122: Всего, в том числе: | C122: =SUM(C123:C124) -> 14,467.4 | D122: 3,037.4 | E122: 0.0 | F122: 2,000.0 | G122: 2,200.0 | H122: 2,410.0 | I122: 2,410.0 | J122: 2,410.0 | K122: 28
B123: местный бюджет | C123: =SUM(D123:J123) -> 11,711.0 | D123: 281.0 | E123: 0.0 | F123: 2,000.0 | G123: 2,200.0 | H123: 2,410.0 | I123: =SUM(H123) -> 2,410.0 | J123: 2,410.0
B124: областной бюджет | C124: =SUM(D124:J124) -> 2,756.4 | D124: 2,756.4 | E124: 0.0 | F124: 0.0 | G124: 0.0 | H124: 0.0 | I124: 0.0 | J124: 0.0
A125: Мероприятие 3 - Закупка и установка осветительного оборудования с заменой неэффективного на энергосберегающее, в том числе замена ламп накаливания на энергосберегающие, строительство, модернизация сетей уличного освещения, проектно-сметные работы, экспертиза проектно-сметной документации
B126: всего, из них: | C126: =SUM(C127:C128) -> 1,136.2 | D126: =SUM(D127:D128) -> 1,136.2 | E126: =SUM(E127:E128) -> 0.0 | F126: 0.0 | G126: 0.0 | H126: 0.0 | I126: 0.0 | J126: 0.0 | K126: 27
B127: местный бюджет | C127: =SUM(D127:J127) -> 548.2 | D127: 548.2 | E127: 0.0 | F127: 0.0 | G127: 0.0 | H127: =SUM(G127) -> 0.0 | I127: 0.0 | J127: 0.0
B128: областной бюджет | C128: =SUM(D128:J128) -> 588.0 | D128: 588.0 | E128: 0.0 | F128: 0.0 | G128: 0.0 | H128: 0.0 | I128: 0.0 | J128: 0.0
A129: 3. Прочие нужды
B130: Всего по направлению «Прочие нужды», всего, в том числе: | C130: =SUM(D130:J130) -> 57,601.6 | D130: =SUM(D131:D132) -> 4,991.9 | E130: =SUM(E131:E132) -> 11,901.3 | F130: 11,065.0 | G130: 7,468.3 | H130: 7,391.7 | I130: 7,391.7 | J130: 7,391.7 | K130: Х
B131: местный бюджет | C131: =SUM(D131:J131) -> 54,601.6 | D131: =SUM(D135+D140+D144+D153+D147+D150) -> 1,991.9 | E131: =SUM(E135+E140+E144+E153+E147+E150) -> 11,901.3 | F131: 11,065.0 | G131: 7,468.3 | H131: 7,391.7 | I131: 7,391.7 | J131: 7,391.7
B132: областной бюджет | C132: =SUM(D132:J132) -> 3,000.0 | D132: =SUM(D141+D136) -> 3,000.0 | E132: =SUM(E141+E136) -> 0.0 | F132: 0.0 | G132: 0.0 | H132: 0.0 | I132: 0.0 | J132: 0.0
A133: Мероприятие 2 - Оснащение зданий (строений, сооружений), находящихся в муниципальной собственности, многоквартирных жилых домов, жилых помещений, квартир приборами учета используемых энергетических ресурсов, в том числе разработка проектно-сметной документации
B134: всего, в том числе: | C134: =SUM(D134:J134) -> 16,072.5 | D134: =SUM(D135:D136) -> 4,200.0 | E134: 1,300.0 | F134: 1,500.0 | G134: 2,150.0 | H134: 2,307.5 | I134: 2,307.5 | J134: 2,307.5 | K134: 20,22,23,24,25
B135: местный бюджет | C135: =SUM(D135:J135) -> 13,072.5 | D135: 1,200.0 | E135: 1,300.0 | F135: 1,500.0 | G135: 2,150.0 | H135: 2,307.5 | I135: =SUM(H135) -> 2,307.5 | J135: =SUM(I135) -> 2,307.5
B136: областной бюджет | C136: =SUM(D136:J136) -> 3,000.0 | D136: 3,000.0 | E136: =SUM(E137) -> 0.0 | F136: 0.0 | G136: 0.0 | H136: 0.0 | I136: 0.0 | J136: 0.0
B137: федеральный бюджет | C137: =SUM(D137:J137) -> 0.0 | D137: 0.0 | E137: 0.0 | F137: 0.0 | G137: =SUM(F137) -> 0.0 | H137: =SUM(G137) -> 0.0 | I137: =SUM(H137) -> 0.0 | J137: =SUM(I137) -> 0.0
A138: Мероприятие 3 - Закупка и установка осветительного оборудования с заменой неэффективного на энергосберегающее, в том числе замена ламп накаливания на энергосберегающие, строительство, модернизация сетей уличного освещения, проектно-сметные работы, экспертиза проектно-сметной документации
B139: всего, из них: | C139: =SUM(C140:C141) -> 27,099.4 | D139: =SUM(D140:D141) -> 411.9 | E139: =SUM(E140:E141) -> 1,400.0 | F139: 5,000.0 | G139: 5,250.0 | H139: 5,012.5 | I139: 5,012.5 | J139: 5,012.5 | K139: 27
B140: местный бюджет | C140: =SUM(D140:J140) -> 27,099.4 | D140: 411.9 | E140: 1,400.0 | F140: 5,000.0 | G140: 5,250.0 | H140: 5,012.5 | I140: =SUM(H140) -> 5,012.5 | J140: 5,012.5
B141: областной бюджет | C141: =SUM(D141:J141) -> 0.0 | D141: 0.0 | E141: 0.0 | F141: 0.0 | G141: 0.0 | H141: 0.0 | I141: 0.0 | J141: 0.0
A142: Мероприятие 4- Разработка схемы водоснабжения Североуральского городского округа
B143: всего, из них: | C143: =SUM(D143:J143) -> 380.0 | D143: =SUM(D144) -> 380.0 | E143: =SUM(E144) -> 0.0 | F143: 0.0 | G143: 0.0 | H143: 0.0 | I143: 0.0 | J143: 0.0 | K143: 29
B144: местный бюджет | C144: =SUM(D144:J144) -> 380.0 | D144: 380.0 | E144: 0.0 | F144: 0.0 | G144: =SUM(F144) -> 0.0 | H144: =SUM(G144) -> 0.0 | I144: =SUM(H144) -> 0.0 | J144: =SUM(I144) -> 0.0
A145: Мероприятие 5 - Разработка, экспертиза проектно-сметной документации на строительство сетей водоснабжения в Североуральском городском округе
B146: всего, из них: | C146: =SUM(D146:J146) -> 8,939.7 | D146: =SUM(D147) -> 0.0 | E146: =SUM(E147) -> 5,939.7 | F146: 3,000.0 | G146: 0.0 | H146: 0.0 | I146: 0.0 | J146: 0.0 | K146: 30
B147: местный бюджет | C147: =SUM(D147:J147) -> 8,939.7 | D147: 0.0 | E147: 5,939.7 | F147: 3,000.0 | G147: 0.0 | H147: =SUM(G147) -> 0.0 | I147: =SUM(H147) -> 0.0 | J147: =SUM(I147) -> 0.0
A148: Мероприятие 6 - Разработка, экспертиза проектно-сметной документации на строительство котельных в Североуральском городском округе
B149: всего, из них: | C149: =SUM(D149:J149) -> 4,500.0 | D149: =SUM(D150) -> 0.0 | E149: =SUM(E150) -> 3,000.0 | F149: 1,500.0 | G149: 0.0 | H149: 0.0 | I149: 0.0 | J149: 0.0 | K149: 32
B150: местный бюджет | C150: =SUM(D150:J150) -> 4,500.0 | D150: 0.0 | E150: 3,000.0 | F150: 1,500.0 | G150: 0.0 | H150: =SUM(G150) -> 0.0 | I150: =SUM(H150) -> 0.0 | J150: =SUM(I150) -> 0.0
A151: Мероприятие 7- Прочие мероприятия в области энергосбережения (разработка технических заданий, топливно-энерготехнического баланса и т.п.)
B152: всего, из них: | C152: =SUM(D152:J152) -> 610.0 | D152: =SUM(D153) -> 0.0 | E152: =SUM(E153) -> 261.6 | F152: 65.0 | G152: 68.3 | H152: 71.7 | I152: 71.7 | J152: 71.7 | K152: 34.35
B153: местный бюджет | C153: =SUM(D153:J153) -> 610.0 | D153: 0.0 | E153: 261.6 | F153: 65.0 | G153: 68.3 | H153: 71.7 | I153: =SUM(H153) -> 71.7 | J153: =SUM(I153) -> 71.7
A154: Подпрограмма 3: Развитие лесного хозяйства на территории Североуральского городского округа
B155: Всего по подпрограмме 1, всего, в том числе | C155: =SUM(C156:C156) -> 3,916.0 | D155: =SUM(D156) -> 774.1 | E155: =SUM(E156) -> 881.1 | F155: 300.0 | G155: 472.5 | H155: 496.1 | I155: 496.1 | J155: 496.1 | K155: Х
B156: местный бюджет | C156: =SUM(D156:J156) -> 3,916.0 | D156: =SUM(D168) -> 774.1 | E156: =SUM(E168) -> 881.1 | F156: 300.0 | G156: 472.5 | H156: 496.1 | I156: 496.1 | J156: 496.1
A157: 1. Капитальные вложения
B158: Всего по направлению «Капитальные вложения», всего, в том числе | C158: 0 | D158: 0 | E158: 0 | F158: 0 | G158: 0 | H158: 0 | I158: 0 | J158: 0 | K158: Х
B159: местный бюджет | C159: 0 | D159: 0 | E159: 0 | F159: 0 | G159: 0 | H159: 0 | I159: 0 | J159: 0
A160: 1.1. Бюджетные инвестиции в объекты капитального строительства
B161: Бюджетные инвестиции в объекты капитального строительства всего, в том числе: | C161: =SUM(C162) -> 0 | D161: =SUM(D162) -> 0 | E161: 0 | F161: 0 | G161: 0 | H161: 0 | I161: 0 | J161: 0 | K161: Х
B162: местный бюджет | C162: 0 | D162: 0 | E162: 0 | F162: 0 | G162: 0 | H162: 0 | I162: 0 | J162: 0
A163: 1.2. Иные капитальные вложения
B164: Всего, в том числе: | C164: =SUM(A166) -> 0 | D164: 0 | E164: 0 | F164: 0 | G164: 0 | H164: 0 | I164: 0 | J164: 0 | K164: Х
B165: местный бюджет | C165: 0 | D165: 0 | E165: 0 | F165: 0 | G165: 0 | H165: 0 | I165: 0 | J165: 0
A166: 3. Прочие нужды
B167: Всего, из них | C167: =SUM(C168:C168) -> 3,916.0 | D167: 774.1 | E167: 881.1 | F167: 300.0 | G167: 472.5 | H167: 496.1 | I167: 496.1 | J167: 496.1 | K167: Х
B168: местный бюджет | C168: =SUM(D168:J168) -> 3,916.0 | D168: =SUM(D171) -> 774.1 | E168: =SUM(E171) -> 881.1 | F168: 300.0 | G168: 472.5 | H168: 496.1 | I168: 496.1 | J168: 496.1
A169: Мероприятие 1- Развитие лесного хозяйства на территории Североуральского городского округа
B170: Всего, в том числе: | C170: =SUM(D170:J170) -> 3,916.0 | D170: =SUM(D171) -> 774.1 | E170: =SUM(E171) -> 881.1 | F170: 300.0 | G170: 472.5 | H170: 496.1 | I170: 496.1 | J170: 496.1 | K170: 39
B171: местный бюджет | C171: =SUM(D171:J171) -> 3,916.0 | D171: 774.1 | E171: 881.1 | F171: 300.0 | G171: 472.5 | H171: 496.1 | I171: =SUM(H171) -> 496.1 | J171: =SUM(I171) -> 496.1
A172: Подпрограмма 4 : Переселение граждан на территории Североуральского городского округа из аварийного жилищного фонда
B173: Всего по подпрограмме 4, всего, в том числе | C173: =SUM(C174:C176) -> 511,623.6 | D173: =SUM(D174:D176) -> 223,750.0 | E173: 267,685.3 | F173: 20,188.3 | G173: 0.0 | H173: 0.0 | I173: 0.0 | J173: 0.0 | K173: Х
B174: местный бюджет | C174: =SUM(D174:J174) -> 110,204.6 | D174: =SUM(D179+D197) -> 40,275.0 | E174: =SUM(E179+E197) -> 49,741.3 | F174: 20,188.3 | G174: 0.0 | H174: 0.0 | I174: 0.0 | J174: 0.0
B175: областной бюджет | C175: =SUM(D175:J175) -> 233,101.4 | D175: =SUM(D180) -> 101,657.0 | E175: =SUM(E180) -> 131,444.4 | F175: 0.0 | G175: 0.0 | H175: 0.0 | I175: 0.0 | J175: 0.0
B176: федеральный бюджет | C176: =SUM(D176:J176) -> 168,317.6 | D176: =SUM(D181) -> 81,818.0 | E176: =SUM(E181) -> 86,499.6 | F176: 0.0 | G176: 0.0 | H176: 0.0 | I176: 0.0 | J176: 0.0
A177: 1. Капитальные вложения
B178: Всего по направлению «Капитальные вложения», всего, в том числе | C178: =SUM(C179:C181) -> 507,323.6 | D178: =SUM(D179:D181) -> 223,750.0 | E178: =SUM(E179:E181) -> 265,785.3 | F178: 17,788.3 | G178: 0.0 | H178: 0.0 | I178: 0.0 | J178: 0.0 | K178: Х
B179: местный бюджет | C179: =SUM(D179:J179) -> 105,904.6 | D179: =SUM(D192) -> 40,275.0 | E179: =SUM(E192) -> 47,841.3 | F179: 17,788.3 | G179: 0.0 | H179: 0.0 | I179: 0.0 | J179: 0.0
B180: областной бюджет | C180: =SUM(D180:J180) -> 233,101.4 | D180: =SUM(D193) -> 101,657.0 | E180: =SUM(E193) -> 131,444.4 | F180: 0.0 | G180: 0.0 | H180: 0.0 | I180: 0.0 | J180: 0.0
B181: федеральный бюджет | C181: =SUM(D181:J181) -> 168,317.6 | D181: =SUM(D194) -> 81,818.0 | E181: =SUM(E194) -> 86,499.6 | F181: 0.0 | G181: 0.0 | H181: 0.0 | I181: 0.0 | J181: 0.0
A182: 1.1. Бюджетные инвестиции в объекты капитального строительства
B183: Бюджетные инвестиции в объекты капитального строительства всего, в том числе: | C183: =SUM(C184) -> 0 | D183: =SUM(D184) -> 0 | E183: 0 | F183: 0 | G183: 0 | H183: 0 | I183: 0 | J183: 0 | K183: Х
B184: местный бюджет | C184: 0 | D184: 0 | E184: 0 | F184: 0 | G184: 0 | H184: 0 | I184: 0 | J184: 0
A185: 1.2. Иные капитальные вложения
B186: Всего, в том числе: | C186: =SUM(D186:J186) -> 493,763.5 | D186: =SUM(D187:D189) -> 210,189.9 | E186: =SUM(E187:E189) -> 265,785.3 | F186: 17,788.3 | G186: 0.0 | H186: 0.0 | I186: 0.0 | J186: 0.0 | K186: Х
B187: местный бюджет | C187: =SUM(D187:J187) -> 105,904.6 | D187: =SUM(D192) -> 40,275.0 | E187: 47,841.3 | F187: 17,788.3 | G187: 0.0 | H187: 0.0 | I187: 0.0 | J187: 0.0
B188: областной бюджет | C188: =SUM(D188:J188) -> 233,101.4 | D188: =SUM(D193) -> 101,657.0 | E188: =SUM(E193) -> 131,444.4 | F188: 0.0 | G188: 0.0 | H188: 0.0 | I188: 0.0 | J188: 0.0
B189: федеральный бюджет | C189: =SUM(D189:J189) -> 154,757.5 | D189: 68,257.9 | E189: =SUM(E194) -> 86,499.6 | F189: 0.0 | G189: 0.0 | H189: 0.0 | I189: 0.0 | J189: 0.0
A190: Мероприятие 1 - Переселение граждан на территории Североуральского городского округа из аварийного жилищного фонда
B191: Всего по направлению «Капитальные вложения», всего, в том числе | C191: =SUM(D191:J191) -> 507,323.6 | D191: =SUM(D192:D194) -> 223,750.0 | E191: =SUM(E192:E194) -> 265,785.3 | F191: 17,788.3 | G191: 0.0 | H191: 0.0 | I191: 0.0 | J191: 0.0 | K191: 43.45
B192: местный бюджет | C192: =SUM(D192:J192) -> 105,904.6 | D192: 40,275.0 | E192: 47,841.3 | F192: 17,788.3 | G192: 0.0 | H192: 0.0 | I192: 0.0 | J192: 0.0
B193: областной бюджет | C193: =SUM(D193:J193) -> 233,101.4 | D193: 101,657.0 | E193: 131,444.4 | F193: 0.0 | G193: 0 | H193: 0 | I193: 0 | J193: 0
B194: федеральный бюджет | C194: =SUM(D194:J194) -> 168,317.6 | D194: 81,818.0 | E194: 86,499.6 | F194: 0.0 | G194: 0 | H194: 0 | I194: 0 | J194: 0
A195: 3. Прочие нужды
B196: Всего, в том числе: | C196: =SUM(D196:J196) -> 4,300.0 | D196: =SUM(D197) -> 0.0 | E196: =SUM(E197) -> 1,900.0 | F196: 2,400.0 | G196: 0.0 | H196: 0.0 | I196: 0.0 | J196: 0.0 | K196: Х
B197: местный бюджет | C197: =SUM(C200+C203) -> 4,300.0 | D197: 0.0 | E197: 1,900.0 | F197: 2,400.0 | G197: 0.0 | H197: 0.0 | I197: 0.0 | J197: 0.0
A198: Мероприятие 2- Осуществление сноса аварийных домов и высвобождение земельных участков под новое жилищное строительство
B199: Всего, из них | C199: =SUM(D199:J199) -> 3,400.0 | D199: =SUM(D200) -> 0.0 | E199: =SUM(E200) -> 1,400.0 | F199: 2,000.0 | G199: 0.0 | H199: 0.0 | I199: 0.0 | J199: 0.0 | K199: 46
B200: местный бюджет | C200: =SUM(D200:J200) -> 3,400.0 | D200: 0.0 | E200: 1,400.0 | F200: 2,000.0 | G200: 0.0 | H200: 0.0 | I200: 0.0 | J200: 0.0
A201: Мероприятие 3 - Обследование жилищного фонда на предмет признания его аварийным
... 157 more rows

Sheet Лист2

Sheet Лист3
